[Event "Chessheroes Superhero Challenge 2022"]
[Site "Randburg"]
[Date "2022.01.05"]
[Round "4.2"]
[White "Klaver, Cornelis"]
[Black "Hercules, Benjamin Vincent"]
[Result "1/2-1/2"]
[ECO "D31"]
[WhiteElo "2050"]
[BlackElo "2101"]
[Annotator "NA"]
[PlyCount "48"]
[EventDate "2022.01.05"]
[EventType "tourn"]
[EventCountry "RSA"]
[SourceTitle "playchess.com"]
[Source "ChessBase"]
[SourceQuality "1"]
[TimeControl "5400+30"]

1. c4 {[%emt 0:00:17]} e6 {[%emt 0:00:40]} 2. Nc3 {[%emt 0:02:20]} d5 {[%emt 0:00:28]} 3. cxd5 {[%emt 0:01:14]} exd5 {[%emt 0:00:10]} 4. d4 {[%emt 0:00:11]} c6 {[%emt 0:01:17]} 5. Bf4 {[%emt 0:02:21]} Bf5 {[%emt 0:06:36]} 6. f3 {[%emt 0:01:18]} Bg6 {[%emt 0:13:10]} 7. e4 {[%emt 0:08:33]} dxe4 {[%emt 0:03:12]} 8. fxe4 {[%emt 0:00:12]} Nf6 {[%emt 0:00:49]} 9. Bc4 {[%emt 0:23:48]} b5 {[%emt 0:12:14]} 10. Bd3 {[%emt 0:23:44]} b4 {[%emt 0:02:29]} 11. Nce2 {[%emt 0:09:17]} Bxe4 {[%emt 0:33:11]} 12. Bxe4 {[%emt 0:00:24]} Nxe4 {[%emt 0:00:08]} 13. Bxb8 {[%emt 0:00:32]} Rxb8 {[%emt 0:00:10]} 14. Qc2 {[%emt 0:00:06]} Nf6 {[%emt 0:03:02]} 15. Qxc6+ {[%emt 0:00:40]} Qd7 {[%emt 0:01:33]} 16. Qxd7+ {[%emt 0:00:39]} Nxd7 {[%emt 0:00:06]} 17. Nf3 {[%emt 0:06:40]} Bd6 {[%emt 0:00:12]} 18. O-O {[%emt 0:00:22]} O-O {[%emt 0:01:25]} 19. Rac1 {[%emt 0:02:13]} Rfe8 {[%emt 0:00:50]} 20. Rc6 {[%emt 0:05:31]} Rb6 {[%emt 0:01:41]} 21. Rxb6 {[%emt 0:01:32]} axb6 {[%emt 0:00:41]} 22. Re1 {[%emt 0:01:07]} Kf8 {[%emt 0:02:41]} 23. Nc1 {[%emt 0:00:28]} Rc8 {[%emt 0:00:25]} 24. Nd3 {[%emt 0:00:26]} Ra8 {[%emt 0:00:46]} 1/2-1/2

[Event "Chessheroes Superhero Challenge 2022"]
[Site "Randburg"]
[Date "2022.01.05"]
[Round "4.3"]
[White "Lekgau, Mothupi"]
[Black "Mazibuko, Khanya"]
[Result "1-0"]
[ECO "C68"]
[WhiteElo "1940"]
[BlackElo "1940"]
[Annotator "NA"]
[PlyCount "87"]
[EventDate "2022.01.05"]
[EventType "tourn"]
[EventCountry "RSA"]
[SourceTitle "playchess.com"]
[Source "ChessBase"]
[SourceQuality "1"]
[TimeControl "5400+30"]

1. e4 {[%emt 0:00:04]} e5 {[%emt 0:01:57]} 2. Nf3 {[%emt 0:00:09]} Nc6 {[%emt 0:00:09]} 3. Bb5 {[%emt 0:00:31]} a6 {[%emt 0:00:10]} 4. Bxc6 {[%emt 0:00:10]} dxc6 {[%emt 0:00:09]} 5. d4 {[%emt 0:00:09]} exd4 {[%emt 0:00:28]} 6. Qxd4 {[%emt 0:05:06]} Qxd4 {[%emt 0:00:02]} 7. Nxd4 {[%emt 0:00:06]} Bd7 {[%emt 0:00:02]} 8. Bg5 {[%emt 0:01:30]} f6 {[%emt 0:01:41]} 9. Be3 {[%emt 0:00:30]} O-O-O {[%emt 0:00:08]} 10. Nd2 {[%emt 0:00:36]} c5 {[%emt 0:02:38]} 11. Ne2 {[%emt 0:01:14]} b6 {[%emt 0:00:29]} 12. O-O-O {[%emt 0:00:17]} Ne7 {[%emt 0:00:33]} 13. h3 {[%emt 0:00:57]} Nc6 {[%emt 0:00:09]} 14. f4 {[%emt 0:01:17]} g6 {[%emt 0:01:00]} 15. Nc3 {[%emt 0:02:08]} Be6 {[%emt 0:01:38]} 16. g4 {[%emt 0:05:24]} Nd4 {[%emt 0:00:09]} 17. f5 {[%emt 0:01:13]} Bf7 {[%emt 0:00:16]} 18. Nb3 {[%emt 0:01:11]} Nxb3+ {[%emt 0:03:31]} 19. axb3 {[%emt 0:00:25]} Bd6 {[%emt 0:00:02]} 20. Rhf1 {[%emt 0:05:56]} Be5 {[%emt 0:00:45]} 21. Bf4 {[%emt 0:01:02]} Rxd1+ {[%emt 0:00:35]} 22. Nxd1 {[%emt 0:00:14]} Bxf4+ {[%emt 0:00:58]} 23. Rxf4 {[%emt 0:00:03]} g5 {[%emt 0:00:02]} 24. Rf3 {[%emt 0:01:12]} h5 {[%emt 0:00:02]} 25. Nf2 {[%emt 0:00:44]} hxg4 {[%emt 0:00:04]} 26. hxg4 {[%emt 0:01:27]} Rh2 {[%emt 0:01:52]} 27. Kd2 {[%emt 0:02:19]} Kd7 {[%emt 0:00:19]} 28. Ke3 {[%emt 0:00:48]} Kd6 {[%emt 0:01:08]} 29. Rh3 {[%emt 0:00:36]} Rxh3+ {[%emt 0:00:09]} 30. Nxh3 {[%emt 0:00:04]} c4 {[%emt 0:00:23]} 31. b4 {[%emt 0:01:03]} c5 {[%emt 0:00:10]} 32. c3 {[%emt 0:00:16]} cxb4 {[%emt 0:00:07]} 33. cxb4 {[%emt 0:00:14]} Kc6 {[%emt 0:00:01]} 34. Kd4 {[%emt 0:00:39]} Kb5 {[%emt 0:00:08]} 35. Kc3 {[%emt 0:00:08]} Kc6 {[%emt 0:01:23]} 36. e5 {[%emt 0:01:14]} fxe5 {[%emt 0:00:14]} 37. Nxg5 {[%emt 0:00:05]} Bd5 {[%emt 0:00:04]} 38. Nh7 {[%emt 0:02:06]} Kd6 {[%emt 0:12:41]} 39. Nf6 {[%emt 0:01:19]} Bf7 {[%emt 0:21:21]} 40. g5 {[%emt 0:01:37]} Ke7 {[%emt 0:01:01]} 41. Ng4 {[%emt 0:00:24]} Kd6 {[%emt 0:06:53]} 42. g6 {[%emt 0:01:05]} Bd5 {[%emt 0:00:04]} 43. f6 {[%emt 0:02:11]} e4 {[%emt 0:03:05]} 44. Kd4 {[%emt 0:00:41]} 1-0

[Event "Chessheroes Superhero Challenge 2022"]
[Site "Randburg"]
[Date "2022.01.05"]
[Round "4.4"]
[White "Du Plessis, Heinco"]
[Black "Parodi, Alessandro"]
[Result "0-1"]
[ECO "B06"]
[WhiteElo "2003"]
[BlackElo "1997"]
[Annotator "NA"]
[PlyCount "62"]
[EventDate "2022.01.05"]
[EventType "tourn"]
[EventCountry "RSA"]
[SourceTitle "playchess.com"]
[Source "ChessBase"]
[SourceQuality "1"]
[TimeControl "5400+30"]

1. e4 {[%emt 0:00:14]} g6 {[%emt 0:00:04]} 2. d4 {[%emt 0:00:03]} Bg7 {[%emt 0:00:06]} 3. Nc3 {[%emt 0:00:03]} d6 {[%emt 0:00:12]} 4. Nf3 {[%emt 0:01:49]} a6 {[%emt 0:00:41]} 5. a4 {[%emt 0:01:13]} b6 {[%emt 0:00:35]} 6. Be2 {[%emt 0:02:03]} Bb7 {[%emt 0:00:12]} 7. O-O {[%emt 0:00:36]} Nf6 {[%emt 0:01:39]} 8. d5 {[%emt 0:03:34]} Nbd7 {[%emt 0:01:15]} 9. Nd4 {[%emt 0:08:41]} Nc5 {[%emt 0:02:05]} 10. Bf3 {[%emt 0:02:52]} O-O {[%emt 0:03:24]} 11. b4 {[%emt 0:13:12]} Ncd7 {[%emt 0:01:51]} 12. a5 {[%emt 0:05:31]} b5 {[%emt 0:01:05]} 13. Be3 {[%emt 0:57:09]} Rc8 {[%emt 0:06:23]} 14. h3 {[%emt 0:00:00]} Ba8 {[%emt 0:02:34]} 15. Qd2 {[%emt 0:00:00]} Re8 {[%emt 0:02:23]} 16. g4 {[%emt 0:00:00]} c5 {[%emt 0:02:21]} 17. dxc6 {[%emt 0:00:00]} Ne5 {[%emt 0:00:33]} 18. Be2 {[%emt 0:00:00]} Nxc6 {[%emt 0:00:31]} 19. g5 {[%emt 0:00:00]} Nd7 {[%emt 0:04:09]} 20. Rab1 {[%emt 0:00:00]} Nce5 {[%emt 0:01:28]} 21. f3 {[%emt 0:00:00]} Nc4 {[%emt 0:00:43]} 22. Bxc4 {[%emt 0:00:00]} Rxc4 {[%emt 0:00:14]} 23. Nce2 {[%emt 0:00:00]} Ne5 {[%emt 0:07:47]} 24. f4 {[%emt 0:00:32]} Nc6 {[%emt 0:00:44]} 25. Nxc6 {[%emt 0:04:52]} Bxc6 {[%emt 0:00:27]} 26. Bb6 {[%emt 0:00:26]} Qc8 {[%emt 0:00:54]} 27. Rb3 {[%emt 0:00:34]} Bxe4 {[%emt 0:01:12]} 28. Ng3 {[%emt 0:00:02]} Rxc2 {[%emt 0:01:24]} 29. Nxe4 {[%emt 0:00:52]} Rxd2 {[%emt 0:00:43]} 30. Nxd2 {[%emt 0:00:01]} Qc2 {[%emt 0:00:54]} 31. Be3 {[%emt 0:00:01]} Bc3 {[%emt 0:01:25]} 0-1

[Event "Chessheroes Superhero Challenge 2022"]
[Site "Randburg"]
[Date "2022.01.06"]
[Round "5.1"]
[White "February, Jesse Nikki"]
[Black "Lekgau, Mothupi"]
[Result "1-0"]
[ECO "B07"]
[WhiteElo "1845"]
[BlackElo "1940"]
[Annotator "ChessBase"]
[PlyCount "105"]
[EventDate "2022.01.05"]
[EventType "tourn"]
[EventCountry "RSA"]
[SourceTitle "playchess.com"]
[Source "ChessBase"]
[SourceQuality "1"]
[TimeControl "5400+30"]

1. e4 {[%emt 0:01:30]} d6 {[%emt 0:00:20]} 2. d4 {[%emt 0:00:16]} e5 {[%emt 0:00:07]} 3. dxe5 {[%emt 0:01:33]} dxe5 {[%emt 0:01:34]} 4. Qxd8+ {[%emt 0:02:49]} Kxd8 {[%emt 0:01:13]} 5. f4 {[%emt 0:00:11]} Nd7 {[%emt 0:03:42]} 6. Nf3 {[%emt 0:01:15]} f6 {[%emt 0:00:15]} 7. Bc4 {[%emt 0:01:02]} Bd6 {[%emt 0:02:53]} 8. g3 {[%emt 0:06:24]} c6 {[%emt 0:01:34]} 9. Nc3 {[%emt 0:01:14]} Kc7 {[%emt 0:01:38]} 10. Be3 {[%emt 0:04:15]} Ne7 {[%emt 0:02:23]} 11. O-O-O {[%emt 0:01:46]} Nb6 {[%emt 0:01:32]} 12. Be2 {[%emt 0:05:43]} Be6 {[%emt 0:03:58]} 13. fxe5 {[%emt 0:01:57]} Bxe5 {[%emt 0:04:02]} 14. Nxe5 {[%emt 0:00:54]} fxe5 {[%emt 0:00:05]} 15. b3 {[%emt 0:00:54]} Rad8 {[%emt 0:02:23]} 16. a4 {[%emt 0:03:17]} Nbc8 {[%emt 0:01:47]} 17. b4 {[%emt 0:04:39]} b6 {[%emt 0:03:42]} 18. Kb2 {[%emt 0:07:41]} h6 {[%emt 0:01:35]} 19. b5 {[%emt 0:01:58]} c5 {[%emt 0:02:21]} 20. a5 {[%emt 0:01:32]} Nd6 {[%emt 0:01:06]} 21. Ra1 {[%emt 0:05:10]} Kb7 {[%emt 0:02:10]} 22. Ra4 {[%emt 0:02:03]} Nec8 {[%emt 0:10:16]} 23. Rha1 {[%emt 0:03:04]} Ne8 {[%emt 0:02:53]} 24. Nd5 {[%emt 0:05:57]} Nc7 {[%emt 0:07:59]} 25. c4 {[%emt 0:08:17]} Rhf8 {[%emt 0:02:16]} 26. axb6 {[%emt 0:08:00]} axb6 {[%emt 0:00:44]} 27. Bh5 {[%emt 0:03:08]} g5 {[%emt 0:05:41]} 28. Be2 {[%emt 0:05:03]} Rd6 {[%emt 0:03:27]} 29. Kc3 {[%emt 0:02:47]} Nxd5+ {[%emt 0:06:12]} 30. cxd5 {[%emt 0:02:23]} Bd7 {[%emt 0:00:53]} 31. Ra8 {[%emt 0:00:35]} Kc7 {[%emt 0:04:20]} 32. R1a6 {[%emt 0:02:16]} Rff6 {[%emt 0:01:51]} 33. Kc4 {[%emt 0:02:26]} Rf7 {[%emt 0:01:54]} 34. h4 {[%emt 0:01:15]} gxh4 {[%emt 0:01:30]} 35. gxh4 {[%emt 0:00:10]} Rdf6 {[%emt 0:01:11]} 36. Kc3 {[%emt 0:02:01]} Nd6 {[%emt 0:00:51]} 37. R6a7+ {[%emt 0:00:35]} Nb7 {[%emt 0:00:05]} 38. Kc4 {[%emt 0:01:02]} Bc8 {[%emt 0:01:02]} 39. Bg1 {[%emt 0:01:35]} Kd8 {[%emt 0:01:08]} 40. Kc3 {[%emt 0:01:16]} Nd6 {[%emt 0:00:58]} 41. Rxf7 {[%emt 0:00:30]} Rxf7 {[%emt 0:00:22]} 42. Bg4 {[%emt 0:00:36]} Nxb5+ {[%emt 0:02:32]} 43. Kd3 {[%emt 0:00:02]} Nd6 {[%emt 0:01:01]} 44. Bh2 {[%emt 0:00:03]} Re7 {[%emt 0:00:30]} 45. Be6 {[%emt 0:00:22]} Kc7 {[%emt 0:03:03]} 46. Ra7+ {[%emt 0:01:22]} Kd8 {[%emt 0:00:36]} 47. Ra8 {[%emt 0:00:05]} c4+ {[%emt 0:03:58]} 48. Ke3 {[%emt 0:00:21]} c3 {[%emt 0:01:39]} 49. Bxe5 {[%emt 0:00:12]} Nc4+ {[%emt 0:03:23]} 50. Kd4 {[%emt 0:00:46]} Rxe6 {[%emt 0:01:04]} 51. dxe6 {[%emt 0:00:18]} Nxe5 {[%emt 0:00:20]} 52. Kxe5 {[%emt 0:00:09]} Kc7 {[%emt 0:00:18]} 53. Ra3 {[%emt 0:00:55]} 1-0

[Event "Chessheroes Superhero Challenge 2022"]
[Site "Randburg"]
[Date "2022.01.06"]
[Round "5.2"]
[White "Parodi, Alessandro"]
[Black "Klaver, Cornelis"]
[Result "0-1"]
[ECO "A15"]
[WhiteElo "1997"]
[BlackElo "2050"]
[Annotator "ChessBase"]
[PlyCount "148"]
[EventDate "2022.01.05"]
[EventType "tourn"]
[EventCountry "RSA"]
[SourceTitle "playchess.com"]
[Source "ChessBase"]
[SourceQuality "1"]
[TimeControl "5400+30"]

1. Nf3 {[%emt 0:00:14]} Nf6 {[%emt 0:00:22]} 2. c4 {[%emt 0:00:09]} e6 {[%emt 0:01:00]} 3. g3 {[%emt 0:00:11]} Nc6 {[%emt 0:02:05]} 4. Bg2 {[%emt 0:01:52]} a5 {[%emt 0:01:28]} 5. b3 {[%emt 0:01:12]} Be7 {[%emt 0:12:02]} 6. O-O {[%emt 0:01:44]} O-O {[%emt 0:00:25]} 7. Bb2 {[%emt 0:02:24]} Re8 {[%emt 0:06:16]} 8. Nc3 {[%emt 0:01:58]} d5 {[%emt 0:20:12]} 9. Rc1 {[%emt 0:05:08]} d4 {[%emt 0:04:40]} 10. Nb5 {[%emt 0:01:46]} e5 {[%emt 0:00:11]} 11. e4 {[%emt 0:01:40]} Bc5 {[%emt 0:08:03]} 12. Ne1 {[%emt 0:01:48]} Nb4 {[%emt 0:08:33]} 13. a3 {[%emt 0:08:00]} Na6 {[%emt 0:00:03]} 14. a4 {[%emt 0:05:56]} Qe7 {[%emt 0:02:48]} 15. Ra1 {[%emt 0:02:59]} c6 {[%emt 0:01:22]} 16. Na3 {[%emt 0:00:18]} Nb4 {[%emt 0:00:11]} 17. Nac2 {[%emt 0:01:39]} Bg4 {[%emt 0:04:28]} 18. Bf3 {[%emt 0:03:45]} h5 {[%emt 0:01:35]} 19. d3 {[%emt 0:12:41]} g6 {[%emt 0:02:27]} 20. Bc1 {[%emt 0:03:04]} Qd7 {[%emt 0:00:07]} 21. Bd2 {[%emt 0:01:05]} Kg7 {[%emt 0:01:02]} 22. Nxb4 {[%emt 0:00:38]} Bxb4 {[%emt 0:00:55]} 23. Bxb4 {[%emt 0:00:33]} axb4 {[%emt 0:00:04]} 24. Qd2 {[%emt 0:00:55]} Qe7 {[%emt 0:04:24]} 25. Bg2 {[%emt 0:00:54]} Nh7 {[%emt 0:00:45]} 26. Nc2 {[%emt 0:00:27]} c5 {[%emt 0:00:12]} 27. f3 {[%emt 0:02:00]} Bd7 {[%emt 0:00:04]} 28. Kf2 {[%emt 0:01:26]} Qg5 {[%emt 0:05:17]} 29. Ke2 {[%emt 0:01:04]} Qxd2+ {[%emt 0:00:37]} 30. Kxd2 {[%emt 0:00:06]} f6 {[%emt 0:02:48]} 31. Rf2 {[%emt 0:00:37]} g5 {[%emt 0:00:21]} 32. f4 {[%emt 0:02:08]} g4 {[%emt 0:00:36]} 33. Rh1 {[%emt 0:01:09]} Rh8 {[%emt 0:00:23]} 34. h3 {[%emt 0:01:11]} Nf8 {[%emt 0:01:43]} 35. hxg4 {[%emt 0:01:00]} Bxg4 {[%emt 0:00:19]} 36. Bh3 {[%emt 0:02:48]} Ne6 {[%emt 0:01:58]} 37. Ne1 {[%emt 0:00:32]} Bxh3 {[%emt 0:01:30]} 38. Rxh3 {[%emt 0:00:11]} h4 {[%emt 0:00:01]} 39. fxe5 {[%emt 0:00:30]} fxe5 {[%emt 0:00:29]} 40. gxh4 {[%emt 0:04:26]} Nf4 {[%emt 0:00:20]} 41. Rg3+ {[%emt 0:00:06]} Kf6 {[%emt 0:00:16]} 42. Rg5 {[%emt 0:01:13]} Rxh4 {[%emt 0:01:29]} 43. Rf5+ {[%emt 0:00:28]} Ke6 {[%emt 0:00:07]} 44. Nf3 {[%emt 0:00:51]} Rh5 {[%emt 0:00:26]} 45. Ng5+ {[%emt 0:02:48]} Rxg5 {[%emt 0:03:24]} 46. Rxg5 {[%emt 0:00:08]} Rh8 {[%emt 0:00:02]} 47. Rg7 {[%emt 0:03:00]} Rh3 {[%emt 0:00:24]} 48. Rxb7 {[%emt 0:02:20]} Rxd3+ {[%emt 0:00:07]} 49. Kc2 {[%emt 0:01:19]} Rc3+ {[%emt 0:00:25]} 50. Kb1 {[%emt 0:00:14]} Nd3 {[%emt 0:02:29]} 51. Rb6+ {[%emt 0:01:57]} Ke7 {[%emt 0:04:45]} 52. Rf1 {[%emt 0:03:20]} Rxb3+ {[%emt 0:00:00]} 53. Kc2 {[%emt 0:01:19]} Rc3+ {[%emt 0:00:00]} 54. Kd2 {[%emt 0:03:28]} Nb2 {[%emt 0:00:00]} 55. Rb7+ {[%emt 0:00:21]} Ke6 {[%emt 0:00:00]} 56. Rbf7 {[%emt 0:05:20]} Nxc4+ {[%emt 0:00:00]} 57. Ke2 {[%emt 0:00:15]} d3+ {[%emt 0:00:00]} 58. Kd1 {[%emt 0:02:36]} Ne3+ {[%emt 0:00:00]} 59. Kd2 {[%emt 0:00:16]} Nxf1+ {[%emt 0:00:00]} 60. Rxf1 {[%emt 0:00:04]} Ra3 {[%emt 0:00:00]} 61. Rh1 {[%emt 0:01:14]} c4 {[%emt 0:00:00]} 62. Rh6+ {[%emt 0:00:01]} Kd7 {[%emt 0:00:00]} 63. Ra6 {[%emt 0:01:04]} Ra2+ {[%emt 0:00:00]} 64. Kc1 {[%emt 0:00:57]} c3 {[%emt 0:01:07]} 65. Kb1 {[%emt 0:00:41]} Rb2+ {[%emt 0:00:11]} 66. Ka1 {[%emt 0:00:12]} d2 {[%emt 0:00:05]} 67. Ra7+ {[%emt 0:00:06]} Kc6 {[%emt 0:00:11]} 68. Ra6+ {[%emt 0:00:05]} Kc5 {[%emt 0:00:12]} 69. Ra5+ {[%emt 0:00:03]} Kc4 {[%emt 0:00:13]} 70. Rd5 {[%emt 0:00:36]} Kb3 {[%emt 0:00:10]} 71. Rd3 {[%emt 0:00:28]} Ra2+ {[%emt 0:00:33]} 72. Kb1 {[%emt 0:00:06]} d1=Q+ {[%emt 0:00:04]} 73. Rxd1 {[%emt 0:00:08]} c2+ {[%emt 0:00:02]} 74. Kc1 {[%emt 0:00:07]} Ra1+ {[%emt 0:00:09]} 0-1

[Event "Chessheroes Superhero Challenge 2022"]
[Site "Randburg"]
[Date "2022.01.06"]
[Round "5.3"]
[White "Mazibuko, Khanya"]
[Black "Du Plessis, Heinco"]
[Result "0-1"]
[ECO "B31"]
[WhiteElo "1940"]
[BlackElo "2003"]
[Annotator "ChessBase"]
[PlyCount "58"]
[EventDate "2022.01.05"]
[EventType "tourn"]
[EventCountry "RSA"]
[SourceTitle "playchess.com"]
[Source "ChessBase"]
[SourceQuality "1"]
[TimeControl "5400+30"]

1. e4 {[%emt 1:31:00]} c5 {[%emt 0:00:04]} 2. Nf3 {[%emt 0:00:00]} Nc6 {[%emt 0:00:05]} 3. Bb5 {[%emt 0:00:00]} g6 {[%emt 0:00:04]} 4. Bxc6 {[%emt 0:00:00]} dxc6 {[%emt 0:00:04]} 5. d3 {[%emt 0:00:00]} Bg7 {[%emt 0:00:08]} 6. h3 {[%emt 0:00:00]} e5 {[%emt 0:00:31]} 7. Be3 {[%emt 0:00:00]} b6 {[%emt 0:00:01]} 8. a4 {[%emt 0:00:00]} a5 {[%emt 0:00:01]} 9. Na3 {[%emt 0:00:00]} Ne7 {[%emt 0:00:05]} 10. Qd2 {[%emt 0:00:00]} O-O {[%emt 0:00:10]} 11. Bh6 {[%emt 0:00:00]} f6 {[%emt 1:34:47]} 12. h4 {[%emt 0:00:00]} Bg4 {[%emt 0:00:21]} 13. Nc4 {[%emt 0:00:00]} Nc8 {[%emt 0:09:39]} 14. h5 {[%emt 0:00:00]} g5 {[%emt 0:06:26]} 15. Bxg7 {[%emt 0:00:00]} Kxg7 {[%emt 0:00:01]} 16. h6+ {[%emt 0:00:00]} Kh8 {[%emt 0:03:21]} 17. Nh2 {[%emt 0:08:00]} Be6 {[%emt 1:17:57]} 18. Ne3 {[%emt 0:00:00]} Nd6 {[%emt 0:07:20]} 19. b3 {[%emt 0:00:00]} Qd7 {[%emt 0:03:09]} 20. Nhf1 {[%emt 0:00:00]} Rad8 {[%emt 0:03:59]} 21. Ng3 {[%emt 0:00:00]} Rg8 {[%emt 0:05:06]} 22. Qc3 {[%emt 0:10:30]} Ne8 {[%emt 0:18:45]} 23. Ne2 {[%emt 0:00:00]} Nc7 {[%emt 0:04:54]} 24. O-O-O {[%emt 0:00:00]} Bf7 {[%emt 0:03:18]} 25. f4 {[%emt 0:00:00]} gxf4 {[%emt 0:00:47]} 26. Nxf4 {[%emt 0:00:00]} Qd4 {[%emt 0:00:19]} 27. Qe1 {[%emt 0:00:00]} exf4 {[%emt 0:00:14]} 28. Nf5 {[%emt 0:00:00]} Qa1+ {[%emt 0:00:28]} 29. Kd2 {[%emt 0:00:00]} Rxg2+ {[%emt 0:00:02]} 0-1

[Event "Chessheroes Superhero Challenge 2022"]
[Site "Randburg"]
[Date "2022.01.06"]
[Round "6.4"]
[White "Parodi, Alessandro"]
[Black "Mazibuko, Khanya"]
[Result "1-0"]
[ECO "A16"]
[WhiteElo "1997"]
[BlackElo "1940"]
[Annotator "ChessBase"]
[PlyCount "83"]
[EventDate "2022.01.05"]
[EventType "tourn"]
[EventCountry "RSA"]
[SourceTitle "playchess.com"]
[Source "ChessBase"]
[SourceQuality "1"]
[TimeControl "5400+30"]

1. Nf3 {[%emt 0:00:06]} Nf6 {[%emt 0:01:35]} 2. c4 {[%emt 0:00:29]} g6 {[%emt 0:00:07]} 3. Nc3 {[%emt 0:00:37]} d5 {[%emt 0:00:36]} 4. cxd5 {[%emt 0:01:56]} Nxd5 {[%emt 0:00:15]} 5. e4 {[%emt 0:00:02]} Nxc3 {[%emt 0:00:13]} 6. dxc3 {[%emt 0:00:30]} Qxd1+ {[%emt 0:00:02]} 7. Kxd1 {[%emt 0:00:01]} f6 {[%emt 0:00:01]} 8. Bc4 {[%emt 1:30:49]} e5 {[%emt 0:00:02]} 9. Be3 {[%emt 0:00:19]} Nd7 {[%emt 0:00:01]} 10. Nd2 {[%emt 0:04:28]} Bc5 {[%emt 0:02:00]} 11. Re1 {[%emt 0:00:08]} Ke7 {[%emt 0:02:28]} 12. Nf1 {[%emt 0:04:35]} Bb6 {[%emt 0:02:45]} 13. Kc2 {[%emt 0:01:11]} Nc5 {[%emt 0:00:36]} 14. b4 {[%emt 0:01:30]} Ne6 {[%emt 0:00:11]} 15. a4 {[%emt 0:00:39]} Nf4 {[%emt 1:27:08]} 16. a5 {[%emt 0:00:50]} Nxg2 {[%emt 0:01:56]} 17. axb6 {[%emt 0:00:10]} Nxe1+ {[%emt 0:00:22]} 18. Rxe1 {[%emt 0:00:13]} axb6 {[%emt 0:00:38]} 19. f4 {[%emt 0:03:14]} Be6 {[%emt 0:00:19]} 20. Bd5 {[%emt 0:02:55]} exf4 {[%emt 0:00:50]} 21. Bxf4 {[%emt 0:00:53]} c6 {[%emt 0:00:02]} 22. Nd2 {[%emt 0:02:10]} Ra6 {[%emt 0:07:30]} 23. Nc4 {[%emt 0:06:05]} Bd7 {[%emt 0:01:57]} 24. Bd6+ {[%emt 0:08:17]} Ke8 {[%emt 1:16:22]} 25. e5 {[%emt 0:05:45]} cxd5 {[%emt 0:03:07]} 26. exf6+ {[%emt 0:00:21]} Be6 {[%emt 0:01:16]} 27. Rxe6+ {[%emt 0:02:14]} Kf7 {[%emt 0:01:30]} 28. Re7+ {[%emt 0:00:53]} Kxf6 {[%emt 0:00:01]} 29. Ne3 {[%emt 0:00:36]} Ra2+ {[%emt 0:03:38]} 30. Kd3 {[%emt 0:02:05]} Rd8 {[%emt 0:03:11]} 31. Nxd5+ {[%emt 0:04:33]} Kg5 {[%emt 0:00:18]} 32. Re5+ {[%emt 0:02:03]} Kg4 {[%emt 0:01:49]} 33. Ne3+ {[%emt 0:02:28]} Kf3 {[%emt 0:01:41]} 34. Re6 {[%emt 0:00:16]} Rxd6+ {[%emt 0:08:09]} 35. Rxd6 {[%emt 0:00:08]} Kf4 {[%emt 0:00:02]} 36. Rxb6 {[%emt 0:00:49]} Rxh2 {[%emt 0:00:44]} 37. Rxb7 {[%emt 0:00:06]} h5 {[%emt 0:00:28]} 38. Rf7+ {[%emt 0:00:13]} Kg5 {[%emt 0:00:01]} 39. b5 {[%emt 0:00:43]} Rb2 {[%emt 0:00:02]} 40. c4 {[%emt 0:01:10]} Kh4 {[%emt 0:00:46]} 41. Kc3 {[%emt 0:01:09]} Rb1 {[%emt 0:00:04]} 42. Rf1 {[%emt 0:00:20]} 1-0